bitfinex/quotes_SOLUSD_20220118
["timestamp","ask_amount","ask_price","bid_price","bid_amount"]
[1642549942428,0.04574111,141.53,141.51,6.06439994]
[1642549942823,0.04574111,141.53,141.52,0.25]
[1642549943223,0.04574111,141.53,141.51,6.06439994]
[1642549943436,0.04574111,141.53,141.52,0.25]
[1642549944425,0.04574111,141.53,141.52,10.8472]
[1642549944627,0.04574111,141.53,141.52,13.6732]
[1642549946129,0.04574111,141.53,141.52,92.40413927]
[1642549946326,0.04574111,141.53,141.52,21.14413927]
[1642549946727,0.04574111,141.53,141.52,31.29413927]
[1642549946930,0.04574111,141.53,141.52,150.50927317]
[1642549947328,3.29419996,141.62,141.53,36.5928]
[1642549947530,3.29419996,141.62,141.54,6.0]
[1642549947730,1.92271778,141.63,141.55,81.41]
[1642549948029,1.92271778,141.63,141.56,6.0]
[1642549948229,1.92271778,141.63,141.57,10.15]
[1642549948428,1.92271778,141.63,141.58,2.824]
[1642549948628,1.92271778,141.63,141.59,10.5906]
[1642549948828,41.43451757,141.64,141.6,0.25]
[1642549950231,41.43451757,141.64,141.59,0.25]
[1642549950431,41.43451757,141.64,141.61,10.5906]
[1642549950631,41.43451757,141.64,141.62,6.06439994]
[1642549951132,41.43451757,141.64,141.63,0.25]
[1642549952333,2.825,141.67,141.63,0.25]
[1642549952732,84.4249637,141.68,141.61,41.2146]
[1642549952932,81.6019637,141.68,141.61,41.2146]
[1642549953333,37.16746722,141.67,141.62,41.06536236]
[1642549953732,37.16746722,141.67,141.63,0.25]
[1642549954133,37.16746722,141.67,141.63,10.8396]
[1642549954734,37.16746722,141.67,141.63,10.5896]
[1642549954935,37.16746722,141.67,141.6,2.823]
[1642549955138,2.823,141.66,141.59,45.4495]
[1642549955334,2.823,141.66,141.59,10.15]
[1642549955737,48.80108112,141.64,141.57,2.823]
[1642549956136,3.074,141.63,141.57,2.823]
[1642549956737,2.824,141.63,141.57,2.823]
[1642549956936,45.31776176,141.61,141.57,2.823]
[1642549957336,48.14276176,141.61,141.57,2.823]
[1642549957936,45.31776176,141.61,141.54,12.975]
[1642549958136,45.31776176,141.61,141.57,0.25]
[1642549958537,45.31776176,141.61,141.54,12.975]
[1642549958737,45.31776176,141.61,141.54,10.15]
[1642549958937,3.075,141.6,141.54,10.15]
[1642549959136,2.825,141.6,141.54,10.15]
[1642549959336,2.825,141.6,141.55,10.8455]
[1642549959538,45.31776176,141.61,141.52,12.975]
[1642549959838,0.25,141.6,141.53,0.25]
[1642549960039,2.825,141.6,141.53,0.25]
[1642549960239,2.825,141.6,141.53,37.57376323]
[1642549960436,2.825,141.6,141.54,10.5963]
[1642549960650,45.31776176,141.61,141.54,10.5963]
[1642549960837,45.31776176,141.61,141.55,0.25]
[1642549961640,45.31776176,141.61,141.56,10.593]
[1642549962040,45.31776176,141.61,141.57,0.25]
[1642549962241,45.31776176,141.61,141.53,37.32376323]
[1642549963539,45.31776176,141.61,141.55,10.5955]
[1642549963940,3.075,141.6,141.55,10.5955]
[1642549965344,3.075,141.6,141.54,10.8463]
[1642549965542,3.075,141.6,141.51,2.825]
[1642549965946,6.0,141.59,141.51,2.825]
[1642549966145,2.825,141.58,141.44,1.99441311]
[1642549966347,25.61335272,141.58,141.44,12.59771311]
[1642549966546,47.70167468,141.57,141.44,12.59771311]
[1642549966748,84.486,141.56,141.44,12.59771311]
[1642549966946,84.486,141.56,141.45,43.54172183]
[1642549967149,6.0,141.55,141.45,43.54172183]
[1642549967347,41.72598188,141.54,141.45,43.54172183]
[1642549967547,6.0,141.53,141.43,2.826]
[1642549967849,2.827,141.52,141.45,10.6027]
[1642549968076,6.0,141.51,141.45,13.4297]
[1642549968249,6.0,141.51,141.46,0.25]
[1642549968446,6.0,141.51,141.47,2.827]
[1642549968649,6.0,141.53,141.47,2.827]
[1642549968850,6.0,141.53,141.47,13.4283]
[1642549969050,6.0,141.53,141.47,2.827]
[1642549969249,2.826,141.52,141.44,2.826]
[1642549969452,2.826,141.52,141.44,3.076]
[1642549970152,36.16620939,141.51,141.44,3.076]
[1642549970553,36.16620939,141.51,141.45,10.6028]
[1642549970955,36.16620939,141.51,141.44,3.076]
[1642549971554,36.16620939,141.51,141.44,4.54693927]
[1642549971754,46.77020939,141.51,141.44,4.29693927]
[1642549971956,2.827,141.5,141.44,2.826]
[1642549972454,0.25,141.49,141.44,2.826]
[1642549973654,0.25,141.49,141.43,2.827]
[1642549973857,0.25,141.49,141.44,10.6036]
[1642549974257,0.25,141.5,141.44,10.6036]
[1642549975859,35.91620939,141.51,141.46,10.6008]
[1642549976160,34.95326398,141.51,141.46,10.6008]
[1642549976863,34.95326398,141.51,141.43,2.827]
[1642549977063,0.25,141.5,141.43,2.827]
[1642549977264,14.481,141.5,141.43,2.827]
[1642549977864,85.741,141.5,141.43,2.827]
[1642549978268,14.481,141.5,141.43,2.827]
[1642549978467,19.6817,141.5,141.43,2.827]
[1642549979066,19.6817,141.5,141.43,41.16807476]
[1642549979274,9.077,141.5,141.39,2.827]
[1642549979469,6.25,141.5,141.39,3.077]
[1642549979668,6.25,141.5,141.4,35.3462]
[1642549979868,9.077,141.5,141.41,2.827]
[1642549980067,9.077,141.5,141.39,3.077]
[1642549981568,90.9418,141.5,141.4,14.29572442]
[1642549983088,90.9418,141.5,141.4,3.68982442]
[1642549983690,90.9418,141.5,141.39,3.077]
[1642549983890,19.6818,141.5,141.4,47.01588168]
[1642549984292,19.6818,141.5,141.41,0.25]
[1642549984890,19.6818,141.5,141.4,47.01588168]
[1642549985089,19.6818,141.5,141.39,2.827]
[1642549985294,25.0918,141.5,141.39,2.827]
[1642549986495,25.0918,141.5,141.39,13.4343]
[1642549986695,19.6818,141.5,141.39,13.4343]
[1642549987097,19.4318,141.5,141.4,49.33207311]
[1642549987297,16.6048,141.5,141.4,49.58207311]
[1642549988100,6.0,141.5,141.4,60.18827311]
[1642549988302,6.0,141.5,141.41,4.29793927]
[1642549988498,68.33056398,141.51,141.41,4.29793927]
[1642549988698,68.33056398,141.51,141.42,0.25]
[1642549988899,8.827,141.5,141.42,0.25]
[1642549989098,8.827,141.5,141.43,10.6036]
[1642549989299,19.4318,141.5,141.41,2.827]
[1642549990302,10.6081,141.47,141.41,2.827]
[1642549990502,10.6081,141.47,141.37,2.827]
[1642549990699,6.25,141.46,141.37,2.827]
[1642549990902,2.828,141.45,141.37,2.827]
[1642549991102,48.84962864,141.44,141.34,2.828]
[1642549991301,49.09962864,141.44,141.35,10.6104]
[1642549991500,49.09962864,141.44,141.35,14.3012881]
[1642549992200,49.09962864,141.44,141.36,0.25]
[1642549992600,38.63572139,141.41,141.36,0.25]
[1642549994202,38.63572139,141.41,141.36,3.079]
[1642549994802,38.63572139,141.41,141.36,0.25]
[1642549995711,6.0,141.4,141.36,0.25]
[1642549996112,2.829,141.43,141.36,44.7121057]
[1642549996314,2.829,141.45,141.36,44.7121057]
[1642549996512,24.5048,141.46,141.36,44.7121057]
[1642549996513,6.0,141.44,141.36,44.7121057]
[1642549996812,6.0,141.45,141.36,44.7121057]
[1642549997014,6.25,141.45,141.36,44.7121057]
[1642549997212,47.61319193,141.44,141.36,44.7121057]
[1642549997414,47.61319193,141.44,141.38,10.608]
[1642549998615,0.25,141.43,141.38,10.608]
[1642549999716,50.44119193,141.44,141.39,46.06312125]
[1642549999916,8.828,141.45,141.39,56.92032125]
[1642550000118,24.5048,141.46,141.39,56.67032125]
[1642550000416,35.3581,141.5,141.36,3.078]
[1642550000417,0.25,141.45,141.36,3.078]
[1642550000816,10.61,141.43,141.36,10.8591]
[1642550001019,10.61,141.43,141.36,13.6871]
[1642550001417,35.25497475,141.42,141.36,3.078]
[1642550002020,6.0,141.41,141.36,3.078]
[1642550002919,35.25497475,141.42,141.36,3.078]
[1642550003321,0.25,141.41,141.35,10.6099]
[1642550003523,6.25,141.41,141.34,2.829]
[1642550003821,9.079,141.41,141.33,12.979]
[1642550004021,6.25,141.41,141.34,10.8613]
[1642550004222,0.25,141.41,141.34,10.8613]
[1642550004421,0.25,141.41,141.35,38.96386033]
[1642550004621,6.25,141.41,141.35,38.96386033]
[1642550004821,0.25,141.41,141.35,42.65497329]
[1642550005021,0.25,141.41,141.35,53.26547329]
[1642550005421,0.25,141.41,141.35,14.30161296]
[1642550005627,3.079,141.41,141.35,3.69111296]
[1642550006320,6.0,141.4,141.35,3.69111296]
[1642550006521,40.86309689,141.39,141.35,3.69111296]
[1642550007726,0.25,141.38,141.35,3.69111296]
[1642550009350,0.25,141.38,141.31,12.60811311]
[1642550009351,76.829,141.37,141.31,1.99441311]
[1642550009551,77.26,141.36,141.31,1.99441311]
[1642550009752,77.51,141.36,141.31,1.99441311]
[1642550010152,38.41059639,141.35,141.31,1.99441311]
[1642550010351,51.85699639,141.35,141.31,1.99441311]
[1642550010555,6.0,141.34,141.29,36.69704386]
[1642550010754,6.0,141.34,141.3,3.08]
[1642550010957,6.0,141.39,141.3,3.08]
[1642550011361,0.25,141.38,141.3,3.08]
[1642550011556,44.24615071,141.38,141.3,3.08]
[1642550012459,54.85985071,141.38,141.31,10.6137]
[1642550012661,6.0,141.37,141.32,37.87983144]
[1642550013061,25.4749,141.4,141.32,37.87983144]
[1642550013264,25.4749,141.4,141.33,0.25]
[1642550013564,80.99864049,141.41,141.34,2.829]
[1642550013762,123.59364066,141.41,141.35,44.10548714]
[1642550014564,123.59364066,141.41,141.35,54.71538714]
[1642550014863,0.25,141.4,141.35,10.6099]
[1642550015063,3.079,141.4,141.35,10.6099]
[1642550016165,0.25,141.4,141.35,10.6099]
[1642550017470,0.25,141.4,141.34,49.37928756]
[1642550017669,13.6913,141.4,141.32,2.829]
[1642550017869,71.26,141.39,141.32,2.829]
[1642550018068,8.829,141.38,141.32,2.829]
[1642550018270,9.079,141.38,141.32,0.0001]
[1642550018469,48.69844569,141.37,141.29,1.99441311]
[1642550018670,2.83,141.36,141.29,1.99441311]
[1642550018869,9.08,141.36,141.29,1.99441311]
[1642550019073,9.08,141.36,141.27,45.44295977]
[1642550020472,10.6163,141.35,141.27,56.05925977]
[1642550020669,40.72788061,141.34,141.27,56.05925977]
[1642550020872,46.72788061,141.34,141.27,56.05925977]
[1642550021072,6.0,141.33,141.27,56.05925977]
[1642550021469,10.6174,141.33,141.27,13.4463]
[1642550021673,0.25,141.32,141.27,2.83]
[1642550021873,6.25,141.32,141.26,12.61221311]
[1642550022273,6.0,141.32,141.26,3.46535238]
[1642550022473,2.83,141.33,141.27,39.23369651]
[1642550022674,40.47788061,141.34,141.28,10.6159]
[1642550022875,43.30788061,141.34,141.26,1.47093927]
[1642550023675,6.0,141.33,141.27,41.14138763]
[1642550023973,40.47788061,141.34,141.27,43.97138763]
[1642550024176,35.388,141.38,141.28,0.25]
[1642550024374,74.39774582,141.41,141.29,86.98]
[1642550024575,5.37108663,141.47,141.35,71.26]
[1642550024874,5.37108663,141.47,141.36,13.228]
[1642550025076,5.37108663,141.47,141.37,58.2053792]
[1642550025077,51.20385338,141.44,141.37,58.2053792]
[1642550025274,51.20385338,141.44,141.38,3.078]
[1642550025474,3.59218324,141.44,141.38,23.8354]
[1642550025676,2.828,141.48,141.38,23.8354]
[1642550025875,1.40123147,141.49,141.39,1.47093927]
[1642550026075,1.40123147,141.49,141.4,12.978]
[1642550026274,1.40123147,141.49,141.4,26.08446892]
[1642550026474,1.40123147,141.49,141.42,58.95716632]
[1642550026674,1.40123147,141.49,141.43,10.4]
[1642550028102,1.40123147,141.49,141.44,13.4301]
[1642550028275,6.0,141.48,141.43,12.977]
[1642550028575,6.0,141.48,141.42,2.827]
[1642550028776,6.0,141.48,141.41,2.827]
[1642550028974,0.25,141.47,141.41,2.827]
[1642550029175,71.26,141.46,141.38,2.828]
[1642550029373,2.828,141.45,141.37,12.978]
[1642550029577,71.26,141.44,141.33,38.1952]
[1642550029774,0.25,141.43,141.33,12.979]
[1642550029978,9.079,141.43,141.33,12.979]
[1642550030175,25.1321,141.43,141.32,10.6134]
[1642550030375,49.23194161,141.42,141.32,10.6134]
[1642550030574,8.829,141.41,141.3,2.829]
[1642550030777,9.079,141.41,141.3,2.829]
[1642550031178,8.829,141.41,141.3,27.77110819]
[1642550031376,49.23194161,141.42,141.32,46.19323709]
[1642550031577,52.06094161,141.42,141.32,46.19323709]
[1642550031778,52.06094161,141.42,141.33,0.25]
[1642550032477,52.06094161,141.42,141.34,10.6111]
[1642550033277,0.25,141.41,141.34,10.6111]
[1642550034079,6.25,141.41,141.32,10.6127]
[1642550034280,74.089,141.4,141.31,2.829]
[1642550034480,37.84613933,141.39,141.29,10.15]
[1642550034684,2.83,141.38,141.29,10.15]
[1642550035180,2.83,141.38,141.3,54.55035322]
[1642550035380,2.83,141.38,141.3,57.38035322]
[1642550035607,2.83,141.38,141.31,0.25]
[1642550035781,37.84613933,141.39,141.32,2.829]
[1642550035982,37.84613933,141.39,141.33,44.80637898]
[1642550036184,37.84613933,141.39,141.34,2.829]
[1642550036384,37.84613933,141.39,141.35,10.611]
[1642550036881,37.84613933,141.39,141.36,0.25]
[1642550037585,37.84613933,141.39,141.34,10.6118]
[1642550037786,37.84613933,141.39,141.32,2.829]
[1642550037987,3.079,141.38,141.31,10.15]
[1642550038187,74.339,141.38,141.32,0.25]
[1642550038387,3.079,141.38,141.32,0.25]
[1642550041598,3.079,141.38,141.32,10.8633]
[1642550041798,0.25,141.38,141.32,10.8633]
[1642550044415,2.829,141.37,141.3,10.6142]
[1642550044815,2.829,141.37,141.31,0.25]
[1642550045016,0.25,141.38,141.31,3.08]
[1642550045217,0.25,141.38,141.31,0.25]
[1642550045415,0.25,141.38,141.32,10.6133]
[1642550046016,0.25,141.38,141.3,2.829]
[1642550047018,0.25,141.38,141.31,10.6141]
[1642550047218,2.829,141.37,141.31,10.6141]
[1642550047420,47.40766198,141.36,141.31,10.6141]
[1642550047824,47.40766198,141.36,141.31,56.61972568]
[1642550048021,47.40766198,141.36,141.32,0.25]
[1642550048222,0.25,141.38,141.32,10.8629]
[1642550048621,9.079,141.41,141.32,10.8629]
[1642550049322,38.88582377,141.4,141.32,10.8629]
[1642550049523,2.829,141.39,141.32,10.8629]
[1642550049722,3.079,141.39,141.32,10.8629]
[1642550051023,3.079,141.39,141.32,10.6129]
[1642550051223,0.25,141.39,141.31,10.614]
[1642550051423,0.25,141.39,141.31,10.864]
[1642550053927,41.71482377,141.4,141.31,10.864]
[1642550054127,38.88582377,141.4,141.34,10.6098]
[1642550054327,2.829,141.45,141.35,3.079]
[1642550054528,96.54349577,141.47,141.35,18.561]
[1642550054828,93.71449577,141.47,141.36,74.088]
[1642550055128,6.0,141.46,141.37,45.5046]
[1642550055430,42.48836101,141.45,141.38,42.90294006]
[1642550055636,42.48836101,141.45,141.39,10.15]
[1642550055829,42.48836101,141.45,141.4,13.4328]
[1642550056229,42.48836101,141.45,141.41,37.85134624]
[1642550056430,90.12231253,141.47,141.42,2.828]
[1642550056830,90.12231253,141.47,141.43,0.25]
[1642550057030,1.40123147,141.49,141.44,20.7514]
[1642550057231,1.40123147,141.49,141.45,0.25]
[1642550057431,38.37131615,141.48,141.45,0.25]
[1642550058431,38.37131615,141.48,141.46,10.6026]
[1642550058632,38.37131615,141.48,141.42,10.15]
[1642550058834,41.19831615,141.48,141.42,10.15]
[1642550059033,38.37131615,141.48,141.43,0.25]
[1642550059237,38.37131615,141.48,141.43,3.077]
[1642550059836,0.25,141.47,141.43,13.432]
[1642550060035,0.25,141.47,141.42,10.15]
[1642550060839,41.19831615,141.48,141.42,10.15]
[1642550061537,41.19831615,141.48,141.42,20.7558]
[1642550062163,41.19831615,141.48,141.43,0.25]
[1642550062363,38.37131615,141.48,141.43,0.25]
[1642550063165,1.40123147,141.49,141.43,55.90044911]
[1642550063362,2.827,141.53,141.43,72.32144911]
[1642550063566,6.0,141.52,141.44,0.25]
[1642550063862,4.91246704,141.56,141.45,10.15]
[1642550063863,4.1472838,141.56,141.45,10.15]
[1642550064063,59.45260493,141.57,141.46,51.43427537]
[1642550064265,103.09887204,141.57,141.47,10.15]
[1642550064463,59.45260493,141.57,141.48,71.26]
[1642550064663,59.45260493,141.57,141.49,10.15]
[1642550064869,59.45260493,141.57,141.49,18.382]
[1642550065066,55.86042169,141.57,141.5,7.72810896]
[1642550065365,55.86042169,141.57,141.51,39.90587209]
[1642550065565,41.46294301,141.59,141.52,23.5707]
[1642550065767,41.46294301,141.59,141.52,29.2717]
[1642550066163,3.59218324,141.62,141.52,29.2717]
[1642550066365,2.825,141.64,141.52,30.74980896]
[1642550066566,3.59218324,141.67,141.53,6.0]
[1642550066766,3.59218324,141.67,141.57,10.5907]
[1642550067064,46.41288564,141.66,141.59,38.16962432]
[1642550067267,46.41288564,141.66,141.6,0.25]
[1642550067466,46.41288564,141.66,141.6,8.776]
[1642550067666,45.91288564,141.66,141.6,19.1162]
[1642550067867,74.084,141.65,141.6,8.526]
[1642550068067,8.824,141.65,141.6,8.526]
[1642550068370,0.25,141.64,141.54,12.974]
[1642550068568,2.825,141.63,141.54,10.15]
[1642550068768,42.79825404,141.62,141.55,10.5954]
[1642550069268,42.79825404,141.62,141.56,0.25]
[1642550069670,42.79825404,141.62,141.55,10.5954]
[1642550070675,124.65475404,141.62,141.54,10.5968]
[1642550070875,2.825,141.61,141.51,2.825]
[1642550071070,6.0,141.6,141.5,10.15]
[1642550071272,2.825,141.59,141.48,10.15]
[1642550071473,74.085,141.59,141.47,51.5878]
[1642550071771,10.6007,141.56,141.49,10.5999]
[1642550071971,2.826,141.55,141.49,10.5999]
[1642550072173,9.076,141.55,141.46,10.15]
[1642550072673,45.56742326,141.54,141.46,10.15]
[1642550073074,6.25,141.53,141.46,10.15]
[1642550073479,6.25,141.53,141.47,10.6014]
[1642550073675,0.25,141.53,141.47,10.6014]
[1642550074076,6.25,141.53,141.47,10.6014]
[1642550075078,48.39342326,141.54,141.49,10.6005]
[1642550075280,2.826,141.57,141.5,0.25]
[1642550075478,55.29570496,141.6,141.5,3.076]
[1642550075679,6.0,141.56,141.5,10.4]
[1642550075878,6.25,141.59,141.51,2.825]
[1642550076083,2.826,141.58,141.5,0.25]
[1642550076278,46.30969232,141.57,141.5,10.5992]
[1642550076578,2.826,141.56,141.46,10.15]
[1642550076877,3.076,141.56,141.47,3.076]
[1642550077078,6.0,141.55,141.47,3.076]
[1642550077278,0.25,141.54,141.48,10.6007]
[1642550077478,36.39289104,141.54,141.48,10.6007]
[1642550077878,36.39289104,141.54,141.47,2.826]
[1642550077879,6.0,141.53,141.47,2.826]
[1642550078282,0.25,141.52,141.47,2.826]
[1642550078881,0.25,141.52,141.47,13.4281]
[1642550079484,8.826,141.53,141.48,0.25]
[1642550079683,6.0,141.53,141.48,0.25]
[1642550080283,6.0,141.53,141.48,10.8509]
[1642550081785,2.826,141.56,141.48,21.0009]
[1642550081990,55.29570496,141.6,141.49,2.826]
[1642550082190,55.29570496,141.6,141.52,10.5966]
[1642550082389,55.29570496,141.6,141.52,18.2046]
[1642550082589,55.29570496,141.6,141.53,0.25]
[1642550082789,43.3961927,141.59,141.53,0.25]
[1642550083190,43.3961927,141.59,141.53,10.597]
[1642550084392,0.25,141.58,141.53,10.597]
[1642550085193,0.25,141.58,141.51,2.825]
[1642550085394,2.825,141.57,141.48,2.825]
[1642550085594,16.6004,141.56,141.47,10.15]
[1642550085798,16.8504,141.56,141.47,10.15]
[1642550086193,37.36742747,141.55,141.48,35.7856278]
[1642550086396,37.36742747,141.55,141.48,38.6116278]
[1642550086595,37.36742747,141.55,141.5,10.5992]
[1642550086994,6.0,141.56,141.51,47.56837019]
[1642550087595,10.5994,141.57,141.51,47.56837019]
[1642550087998,6.0,141.56,141.51,47.56837019]
[1642550088425,6.0,141.56,141.51,58.16727019]
[1642550088625,52.58130657,141.57,141.51,58.16727019]
[1642550088927,52.58130657,141.57,141.52,0.25]
[1642550089223,6.0,141.56,141.52,0.25]
[1642550089624,6.0,141.57,141.52,10.8483]
[1642550090124,6.0,141.58,141.52,10.8483]
[1642550090325,6.25,141.59,141.52,10.8483]
[1642550090525,55.06367543,141.59,141.52,10.8483]
[1642550090924,54.81367543,141.59,141.52,10.8483]
[1642550091625,54.81367543,141.59,141.53,2.825]
[1642550091825,54.81367543,141.59,141.54,35.89480795]
[1642550092028,54.81367543,141.59,141.54,36.14480795]
[1642550092627,54.81367543,141.59,141.54,35.89480795]
[1642550092826,54.81367543,141.59,141.53,2.825]
[1642550093426,54.81367543,141.59,141.54,10.5968]
[1642550094327,54.81367543,141.59,141.53,2.825]
[1642550095129,54.81367543,141.59,141.54,37.38256859]
[1642550095330,2.825,141.61,141.54,56.09726859]
[1642550095530,3.59218324,141.62,141.55,2.825]
[1642550095730,3.59218324,141.62,141.56,0.25]
[1642550095929,3.59218324,141.64,141.57,2.825]
[1642550096130,3.59218324,141.64,141.57,8.884]
[1642550096329,47.74872762,141.63,141.57,6.059]
[1642550096535,47.74872762,141.63,141.58,0.25]
[1642550096729,47.74872762,141.63,141.57,16.6529]
[1642550098533,47.74872762,141.63,141.57,59.7235973]
[1642550099431,47.74872762,141.63,141.58,10.8432]
[1642550102134,47.74872762,141.63,141.58,13.6672]
[1642550102335,47.24872762,141.63,141.58,13.6672]
[1642550102535,47.24872762,141.63,141.58,13.4172]
[1642550103138,47.24872762,141.63,141.58,2.824]
[1642550103339,47.24872762,141.63,141.47,170.24354559]
[1642550103638,9.075,141.62,141.49,33.4436]
[1642550104038,80.335,141.62,141.49,33.4436]
[1642550104241,23.7303,141.61,141.49,33.4436]
[1642550104440,2.825,141.6,141.49,33.4436]
[1642550104637,40.69278929,141.59,141.5,39.64939051]
[1642550105037,6.25,141.58,141.5,39.64939051]
[1642550105242,0.25,141.58,141.5,39.64939051]
[1642550105438,0.25,141.58,141.52,10.5977]
[1642550105639,6.25,141.58,141.52,10.5977]
[1642550106641,0.25,141.58,141.52,10.5977]
[1642550107041,6.25,141.58,141.52,10.5977]
[1642550107241,0.25,141.58,141.52,10.5977]
[1642550107742,6.25,141.58,141.52,10.5977]
[1642550107941,3.075,141.58,141.52,10.5977]
[1642550108642,3.075,141.58,141.53,44.0588983]
[1642550108842,0.25,141.58,141.53,54.6561983]
[1642550110047,6.0,141.58,141.53,54.6561983]
[1642550111144,40.69278929,141.59,141.53,54.6561983]
[1642550111745,40.69278929,141.59,141.53,10.5973]
[1642550112245,40.69278929,141.59,141.52,13.423]
[1642550112445,40.69278929,141.59,141.5,2.825]
[1642550112644,40.69278929,141.59,141.5,13.225]
[1642550112844,40.69278929,141.59,141.5,12.975]
[1642550113045,0.25,141.58,141.5,12.975]
[1642550113244,13.675,141.58,141.5,23.5745]
[1642550113443,19.675,141.58,141.5,23.5745]
[1642550114449,19.675,141.58,141.5,20.7495]
[1642550119252,19.675,141.58,141.51,45.68059625]
[1642550119656,19.675,141.58,141.51,56.27929625]
[1642550120454,19.675,141.58,141.51,10.5987]
[1642550122077,19.675,141.58,141.49,10.5996]
[1642550122876,19.675,141.58,141.47,2.825]
[1642550122877,21.46405272,141.58,141.47,2.825]
[1642550123077,21.46405272,141.58,141.44,12.46606499]
[1642550123078,45.33595272,141.58,141.45,10.6025]
[1642550124479,48.92813596,141.58,141.45,10.6025]
[1642550124980,48.92813596,141.58,141.46,44.31717152]
[1642550125180,71.26,141.57,141.46,44.31717152]
[1642550125381,119.26793747,141.56,141.46,44.31717152]
[1642550125583,10.6031,141.54,141.46,44.31717152]
[1642550125781,0.25,141.53,141.45,10.6025]
[1642550125982,6.25,141.53,141.45,10.6025]
[1642550126383,6.25,141.53,141.43,23.5799]
[1642550126682,40.81466503,141.51,141.43,2.826]
[1642550126882,40.81466503,141.51,141.42,2.827]
[1642550127182,6.25,141.5,141.42,2.827]
[1642550127388,9.077,141.5,141.42,2.827]
[1642550127682,81.8656,141.49,141.42,2.827]
[1642550127883,2.827,141.48,141.42,2.827]
[1642550128083,41.2638601,141.47,141.42,2.827]
[1642550128282,3.077,141.46,141.42,2.827]
[1642550128483,71.26,141.45,141.42,2.827]
[1642550128682,40.95266995,141.44,141.42,2.827]
[1642550128884,69.6102,141.43,141.42,2.827]
[1642550129084,75.6102,141.43,141.42,2.827]
[1642550129283,16.8602,141.43,141.42,2.827]
[1642550129484,16.8602,141.43,141.42,0.007]
[1642550130085,60.8602,141.43,141.42,0.007]
[1642550130486,2.828,141.42,141.34,53.13171851]
[1642550130688,0.25,141.41,141.34,10.6106]
[1642550130884,0.25,141.41,141.33,10.15]
[1642550130885,16.8616,141.41,141.33,20.762]
[1642550131685,16.8616,141.41,141.33,58.06407052]
[1642550131886,38.25172521,141.4,141.33,58.06407052]
[1642550132288,6.25,141.39,141.33,58.06407052]
[1642550133386,0.25,141.39,141.33,58.06407052]
[1642550133785,6.25,141.41,141.33,58.06407052]
[1642550134189,36.5180091,141.4,141.33,58.06407052]
[1642550134588,0.25,141.39,141.33,58.06407052]
[1642550137089,36.5180091,141.4,141.33,58.06407052]
[1642550137305,36.5180091,141.4,141.34,13.6897]
[1642550139498,10.6108,141.42,141.34,13.6897]
[1642550139699,6.25,141.41,141.34,13.6897]
[1642550139902,2.829,141.44,141.35,71.26]
[1642550140203,2.829,141.44,141.38,10.6068]
[1642550140401,1.40135166,141.45,141.39,2.828]
[1642550140624,1.40135166,141.45,141.4,38.76431477]
[1642550141525,1.40135166,141.45,141.4,49.37071477]
[1642550142828,1.40135166,141.45,141.4,10.6064]
[1642550147828,1.40135166,141.45,141.38,10.6077]
[1642550147829,0.25,141.44,141.38,10.6077]
[1642550148031,3.078,141.44,141.38,10.6077]
[1642550148830,46.59561289,141.43,141.38,10.6077]
[1642550149232,0.25,141.42,141.38,10.6077]